fUSD/lending_fUSD_20251113
["ID","MTS","AMOUNT","RATE_DAILY","PERIOD"]
[393795324,1762996244425,-500.0,0.00040263,30]
[393795325,1762996244434,-281110.941391,0.00040263,4]
[393795326,1762996244444,-45823.02786205,0.00040263,4]
[393795329,1762996246523,-196.91537178,0.00033546,2]
[393795330,1762996246534,-151.0,0.00040172,2]
[393795331,1762996246543,-11406.43536448,0.00040263,4]
[393795332,1762996246589,-14528.84867408,0.00040263,4]
[393795333,1762996246640,-1060.00000002,0.00040263,4]
[393795335,1762996294472,1000.0,0.00040627,30]
[393795336,1762996294782,1000.0,0.00040627,30]
[393795337,1762996295093,1000.0,0.00040627,30]
[393795338,1762996295404,1000.0,0.00040627,30]
[393795339,1762996295712,1000.0,0.00040627,30]
[393795340,1762996296035,1000.0,0.00040627,30]
[393795341,1762996296338,759.88913275,0.00040627,30]
[393795343,1762996334624,151.0,0.00040627,30]
[393795344,1762996335302,151.0,0.00040627,30]
[393795345,1762996335994,151.0,0.00040627,30]
[393795346,1762996336879,151.0,0.00040627,30]
[393795347,1762996337804,151.0,0.00040627,30]
[393795348,1762996338297,151.0,0.00040627,30]
[393795349,1762996338956,151.0,0.00040627,30]
[393795350,1762996339621,151.0,0.00040627,30]
[393795351,1762996340262,151.0,0.00040627,30]
[393795352,1762996347490,200.0,0.00040627,30]
[393795355,1762996607056,200.4,0.00016,2]
[393795356,1762996854426,1000.0,0.00040628,30]
[393795357,1762996854742,1000.0,0.00040628,30]
[393795358,1762996855093,1000.0,0.00040628,30]
[393795359,1762996855404,1000.0,0.00040628,30]
[393795360,1762996855733,1000.0,0.00040628,30]
[393795361,1762996856105,270.61,0.00040628,30]
[393795362,1762996983927,195.0,0.000187,120]
[393795363,1762997013980,-250.0,0.00017,2]
[393795364,1762997014004,-371.92533434,0.00017997,2]
[393795365,1762997048742,195.0,0.00019797,120]
[393795366,1762997050800,2108.64309599,0.00019797,120]
[393795367,1762997074049,-186.28594916,0.00017997,2]
[393795368,1762997105274,195.0,0.00019797,120]
[393795369,1762997105377,195.0,0.00024944,120]
[393795370,1762997110526,10000.01,0.000154,2]
[393795371,1762997110550,6550.80267537,0.000154,2]
[393795375,1762997282036,300.0,0.00016999,2]
[393795376,1762997282673,-201.53004459,0.00017,2]
[393795377,1762997286341,-575.15507228,0.00017,2]
[393795378,1762997287840,-158.38280714,0.00017,2]
[393795379,1762997289511,-217.59100313,0.00017,2]
[393795380,1762997291129,-300.0,0.00017,2]
[393795381,1762997293275,-316.20003929,0.00017,2]
[393795383,1762997295787,-2634.74242442,0.00017,2]
[393795384,1762997295802,-10000.01,0.00017,2]
[393795385,1762997298378,-10000.01,0.00017,2]
[393795386,1762997298467,-10000.01,0.00017,2]
[393795387,1762997298575,-10000.01,0.00017,2]
[393795388,1762997298728,-10000.01,0.00017,2]
[393795389,1762997304422,-10000.01,0.00017,2]
[393795390,1762997329608,-424.26729179,0.00017,2]
[393795391,1762997331778,-300.0,0.00017,2]
[393795392,1762997334422,-166.21358294,0.00017,2]
[393795393,1762997335973,-205.81,0.00017,2]
[393795394,1762997338695,-218.4,0.00017,2]
[393795395,1762997342120,-197.47643844,0.00017,2]
[393795396,1762997345503,-207.24434178,0.00017,2]
[393795397,1762997347762,-186.236175,0.00017,2]
[393795398,1762997349985,-180.43313349,0.00017,2]
[393795399,1762997351530,-556.40440631,0.00017,2]
[393795400,1762997353093,-319.56686651,0.00017,2]
[393795401,1762997355325,-169.7367218,0.00017,2]
[393795402,1762997357407,500.0,0.00016999,2]
[393795403,1762997357435,500.0,0.00016999,2]
[393795404,1762997357463,318.33264924,0.00016999,2]
[393795405,1762997357495,500.0,0.00016999,2]
[393795406,1762997357524,500.0,0.00016999,2]
[393795407,1762997357551,500.0,0.00016999,2]
[393795408,1762997357584,500.0,0.00016999,2]
[393795409,1762997357612,500.0,0.00016999,2]
[393795410,1762997357639,500.0,0.00016999,2]
[393795411,1762997357665,500.0,0.00016999,2]
[393795412,1762997357693,500.0,0.00016999,2]
[393795413,1762997357719,500.0,0.00016999,2]
[393795414,1762997357748,500.0,0.00016999,2]
[393795415,1762997357777,500.0,0.00016999,2]
[393795416,1762997357806,179.93056742,0.00016999,2]
[393795417,1762997357834,500.0,0.00016999,2]
[393795418,1762997357864,500.0,0.00016999,2]
[393795419,1762997357891,500.0,0.00016999,2]
[393795420,1762997357918,500.0,0.00016999,2]
[393795421,1762997357945,555.52653275,0.00016999,2]
[393795422,1762997357971,446.22025059,0.00016999,2]
[393795423,1762997357995,53.77974941,0.00016999,2]
[393795424,1762997358023,500.0,0.00016999,2]
[393795425,1762997358052,500.0,0.00016999,2]
[393795426,1762997358080,500.0,0.00016999,2]
[393795427,1762997358110,500.0,0.00016999,2]
[393795428,1762997358137,309.37576085,0.00016999,2]
[393795429,1762997358164,500.0,0.00016999,2]
[393795430,1762997358204,500.0,0.00016999,2]
[393795431,1762997358231,500.0,0.00016999,2]
[393795432,1762997358261,500.0,0.00016999,2]
[393795433,1762997358292,500.0,0.00016999,2]
[393795434,1762997358328,500.0,0.00016999,2]
[393795435,1762997358357,500.0,0.00016999,2]
[393795436,1762997358385,500.0,0.00016999,2]
[393795437,1762997358416,500.0,0.00016999,2]
[393795438,1762997358444,500.0,0.00016999,2]
[393795439,1762997358474,500.0,0.00016999,2]
[393795440,1762997358535,500.0,0.00016999,2]
[393795441,1762997358562,500.0,0.00016999,2]
[393795442,1762997358590,500.0,0.00016999,2]
[393795443,1762997358621,500.0,0.00016999,2]
[393795444,1762997358650,136.85448974,0.00016999,2]
[393795445,1762997358673,363.14551026,0.00016999,2]
[393795446,1762997358704,500.0,0.00016999,2]
[393795447,1762997358736,500.0,0.00016999,2]
[393795448,1762997358765,500.0,0.00016999,2]
[393795449,1762997358797,500.0,0.00016999,2]
[393795450,1762997358825,500.0,0.00016999,2]
[393795451,1762997358859,500.0,0.00016999,2]
[393795452,1762997358904,500.0,0.00016999,2]
[393795453,1762997358935,500.0,0.00016999,2]
[393795454,1762997358967,500.0,0.00016999,2]
[393795455,1762997359120,500.0,0.00016999,2]
[393795456,1762997359149,500.0,0.00016999,2]
[393795457,1762997359177,-328.44521035,0.00017,2]
[393795458,1762997359205,500.0,0.00016999,2]
[393795459,1762997359238,500.0,0.00016999,2]
[393795460,1762997359269,500.0,0.00016999,2]
[393795461,1762997359315,478.79044962,0.00016999,2]
[393795462,1762997359359,500.0,0.00016999,2]
[393795463,1762997359437,500.0,0.00016999,2]
[393795464,1762997359474,500.0,0.00016999,2]
[393795465,1762997359503,500.0,0.00016999,2]
[393795466,1762997359532,158.07404012,0.00016999,2]
[393795467,1762997359556,341.92595988,0.00016999,2]
[393795468,1762997359590,500.0,0.00016999,2]
[393795469,1762997359620,500.0,0.00016999,2]
[393795470,1762997359648,500.0,0.00016999,2]
[393795471,1762997359679,500.0,0.00016999,2]
[393795472,1762997359709,500.0,0.00016999,2]
[393795473,1762997359745,500.0,0.00016999,2]
[393795474,1762997359773,500.0,0.00016999,2]
[393795475,1762997359838,500.0,0.00016999,2]
[393795476,1762997359868,500.0,0.00016999,2]
[393795477,1762997359899,500.0,0.00016999,2]
[393795478,1762997359930,500.0,0.00016999,2]
[393795479,1762997359961,500.0,0.00016999,2]
[393795480,1762997359996,500.0,0.00016999,2]
[393795481,1762997360025,500.0,0.00016999,2]
[393795482,1762997360055,500.0,0.00016999,2]
[393795483,1762997360092,500.0,0.00016999,2]
[393795484,1762997360120,500.0,0.00016999,2]
[393795485,1762997360149,500.0,0.00016999,2]
[393795486,1762997360185,500.0,0.00016999,2]
[393795487,1762997360219,158.08404012,0.00016999,2]
[393795488,1762997360246,341.91595988,0.00016999,2]
[393795489,1762997360283,154.97145769,0.00016999,2]
[393795490,1762997360316,500.0,0.00016999,2]
[393795491,1762997360355,500.0,0.00016999,2]
[393795492,1762997363994,-244.36544463,0.00017,2]
[393795493,1762997366284,-238.66255044,0.00017,2]
[393795494,1762997367796,-152.62525159,0.00017,2]
[393795495,1762997370024,-184.05464623,0.00017,2]
[393795496,1762997370243,500.0,0.00016999,2]
[393795497,1762997370286,500.0,0.00016999,2]
[393795498,1762997370346,301.48896148,0.00016999,2]
[393795499,1762997373337,-207.64977767,0.00017,2]
[393795500,1762997374087,500.0,0.00016999,2]
[393795501,1762997374130,500.0,0.00016999,2]
[393795502,1762997374176,500.0,0.00016999,2]
[393795503,1762997374223,500.0,0.00016999,2]
[393795504,1762997374271,500.0,0.00016999,2]
[393795505,1762997374315,500.0,0.00016999,2]
[393795506,1762997374359,500.0,0.00016999,2]
[393795507,1762997374406,500.0,0.00016999,2]
[393795508,1762997374453,500.0,0.00016999,2]
[393795509,1762997374494,500.0,0.00016999,2]
[393795510,1762997374539,500.0,0.00016999,2]
[393795511,1762997374584,500.0,0.00016999,2]
[393795512,1762997374626,500.0,0.00016999,2]
[393795513,1762997374664,500.0,0.00016999,2]
[393795514,1762997374706,201.63362095,0.00016999,2]
[393795515,1762997374730,298.36637905,0.00016999,2]
[393795516,1762997375223,247.97179208,0.00016999,2]
[393795517,1762997375252,500.0,0.00016999,2]
[393795518,1762997375284,500.0,0.00016999,2]
[393795519,1762997375321,500.0,0.00016999,2]
[393795520,1762997375353,500.0,0.00016999,2]
[393795521,1762997375388,500.0,0.00016999,2]
[393795522,1762997380368,-291.83508745,0.00017,2]
[393795523,1762997383005,-251.96817121,0.00017,2]
[393795524,1762997386367,-284.2455477,0.00017,2]
[393795525,1762997388385,-180.87637885,0.00017,2]
[393795526,1762997391304,-426.12331241,0.00017,2]
[393795527,1762997393503,-206.65688799,0.00017,2]
[393795528,1762997395800,-180.68188177,0.00017,2]
[393795529,1762997397775,-231.85151084,0.00017,2]
[393795530,1762997400515,-164.55270724,0.00017,2]
[393795531,1762997401568,300.0,0.00016999,2]
[393795532,1762997401601,300.0,0.00016999,2]
[393795533,1762997401635,1200.0,0.00016999,2]
[393795534,1762997403054,550.0,0.00016999,2]
[393795535,1762997404082,300.0,0.00016999,2]
[393795536,1762997406715,-292.65054871,0.00017,2]
[393795537,1762997408641,1378.304297,7.945e-05,2]
[393795552,1762997431470,-85733.1717741,0.00017,2]
[393795553,1762997431589,-26770.32602581,0.00017,2]
[393795554,1762997431601,-748.69638418,0.00017,2]
[393795555,1762997431612,-254.0,0.00017,2]
[393795556,1762997431624,-755.09189969,0.00017,2]
[393795557,1762997431663,-41583.06335095,0.00017,2]
[393795558,1762997431675,-24484.71187831,0.00017,2]
[393795559,1762997431698,-8810.22490896,0.00017,2]
[393795560,1762997431710,-7392.37233475,0.00017,2]
[393795561,1762997431719,-332.03945805,0.00017103,2]
[393795562,1762997431729,-195.0,0.00017206,2]
[393795563,1762997431739,-280.0,0.00017412,2]
[393795564,1762997431748,-195.0,0.00017656,2]
[393795565,1762997431758,-391.30232796,0.000179,2]
[393795566,1762997431768,-13.64950314,0.00017973,2]
[393795567,1762997431783,-486.35049686,0.00017973,2]
[393795568,1762997431792,-232.84521989,0.00017973,2]
[393795569,1762997431805,-267.15478011,0.00017973,2]
[393795570,1762997431815,-501.57242685,0.00017973,2]
[393795571,1762997431825,-160.0,0.00017995,2]
[393795572,1762997431835,-441.7887165,0.00017997,2]
[393795573,1762997431844,-1000.0,0.00017997,2]
[393795574,1762997431854,-367.69745979,0.00017999,2]
[393795575,1762997437355,-832.30254021,0.00017999,2]
[393795576,1762997437364,-72502.41314337,0.00018,2]
[393795577,1762997437374,-1763.86152601,0.000181,2]
[393795578,1762997437383,-482.0,0.00018104,2]
[393795579,1762997437393,-1000.0,0.00018521,2]
[393795580,1762997437402,-500.0,0.00018521,2]
[393795581,1762997437415,-420.0,0.00018567,2]
[393795582,1762997437425,-420.0,0.00018567,2]
[393795583,1762997437435,-1680.0,0.00018659,2]
[393795584,1762997437445,-500.0,0.00018667,2]
[393795585,1762997437456,-500.0,0.00018667,2]
[393795586,1762997437468,-299.03031599,0.00018667,2]
[393795587,1762997437477,-626.36620621,0.00018667,2]
[393795588,1762997437487,-280.21440447,0.000187,2]
[393795589,1762997437497,-195.0,0.000187,2]
[393795590,1762997437507,-400.36775104,0.000187,2]
[393795591,1762997437516,-193.0,0.000187,2]
[393795592,1762997437526,-300.0,0.000187,2]
[393795593,1762997437536,-391.30232795,0.0001872,2]
[393795594,1762997437546,-742.90466296,0.00019,2]
[393795595,1762997437559,-354.74767821,0.0001901,7]
[393795596,1762997437569,-500.0,0.00019068,2]
[393795597,1762997437579,-502.91924862,0.00019215,2]
[393795598,1762997437590,-568.40265324,0.00019215,2]
[393795599,1762997437599,-1730.43454739,0.000195,7]
[393795600,1762997437609,-391.30232795,0.00019539,2]
[393795601,1762997437619,-250.0,0.00019797,2]
[393795602,1762997437628,-195.0,0.00019797,2]
[393795603,1762997437638,-25406.97155628,0.0001999,2]
[393795604,1762997437647,-7148.54936833,0.0002,5]
[393795605,1762997437657,-164.0,0.0002,3]
[393795606,1762997437666,-587.0,0.00020279,2]
[393795607,1762997437675,-403.0,0.00020279,2]
[393795608,1762997437685,-2351.0,0.00020481,2]
[393795609,1762997437695,-190.92,0.00020495,2]
[393795610,1762997437704,-190.92,0.00021263,2]
[393795611,1762997437714,-296.57105252,0.00021792,2]
[393795612,1762997437723,-190.92,0.00022032,2]
[393795613,1762997437732,-823.0,0.00022149,2]
[393795615,1762997437742,-192.64453787,0.00022246,2]
[393795617,1762997437751,-3292.0,0.00022481,2]
[393795619,1762997437761,-190.92,0.00022801,2]
[393795620,1762997437773,-19216.17678615,0.000229,2]
[393795623,1762997437783,-435.82522262,0.00023,2]
[393795625,1762997437792,-998.37895663,0.00023,2]
[393795627,1762997437801,-2562.04972437,0.000231,2]
[393795629,1762997437812,-526.80625268,0.00023173,2]
[393795631,1762997437821,-500.0,0.00023173,2]
[393795633,1762997437830,-500.0,0.00023173,2]
[393795635,1762997437839,-327.11811407,0.00023173,2]
[393795637,1762997437849,-500.0,0.00023173,2]
[393795639,1762997437858,-500.0,0.00023173,2]
[393795641,1762997437867,-500.0,0.00023173,2]
[393795643,1762997437876,-500.0,0.00023173,2]
[393795645,1762997437886,-500.0,0.00023173,2]
[393795647,1762997437895,-218.87120248,0.00023173,2]
[393795649,1762997437904,-500.0,0.00023173,2]
[393795651,1762997437913,-500.0,0.00023173,2]
[393795653,1762997437923,-500.0,0.00023173,2]
[393795655,1762997437932,-51694.98800663,0.000232,2]
[393795657,1762997437941,-295.52098523,0.000234,2]
[393795659,1762997437950,-200.0,0.000235,2]
[393795661,1762997437959,-190.92,0.00023569,2]
[393795663,1762997437969,-1000.0,0.00023721,2]
[393795665,1762997437978,-1000.0,0.00023721,2]
[393795667,1762997437987,-349.86380641,0.00023721,2]
[393795669,1762997437996,-1004.76484986,0.00023721,2]
[393795671,1762997438005,-1000.0,0.00023721,2]
[393795673,1762997438014,-981.51325619,0.00023721,2]
[393795675,1762997438023,-500.0,0.00023721,2]
[393795677,1762997438033,-657.1701375,0.00023721,2]
[393795678,1762997438042,-1002.15227908,0.00023721,2]
[393795680,1762997438052,-151.69,0.00023908,2]
[393795682,1762997438062,-1011.30473127,0.00024,2]
[393795684,1762997438072,-1039.97299087,0.00024,14]
[393795686,1762997438083,-3600.0,0.00024,2]
[393795689,1762997438094,-10746.38242042,0.00024,2]
[393795691,1762997438103,-500.0,0.00024,2]
[393795692,1762997438113,-500.0,0.00024,2]
[393795693,1762997438123,-200.0,0.00024,2]
[393795694,1762997438132,-500.0,0.00024,2]
[393795695,1762997438142,-1152.0,0.00024192,2]
[393795696,1762997438151,-413.42599432,0.0002421,2]
[393795697,1762997438161,-503.66064638,0.00024268,2]
[393795698,1762997438171,-1500.0,0.00024268,2]
[393795699,1762997438181,-1500.0,0.00024268,2]
[393795700,1762997438190,-1000.0,0.00024548,2]
[393795701,1762997438199,-1000.0,0.00024548,2]
[393795702,1762997438209,-162.28173829,0.0002455,15]
[393795703,1762997438220,-591.78558139,0.0002465,2]
[393795704,1762997438230,-4609.0,0.00024676,2]
[393795705,1762997438240,-400.0,0.00024685,2]
[393795706,1762997438250,-45556.0082201,0.000248,3]
[393795707,1762997438259,-2000.0,0.00024816,2]
[393795708,1762997438268,-1015.44652778,0.00024816,2]
[393795709,1762997438278,-7242.92043941,0.00025,10]
[393795710,1762997438287,-1500.0,0.00025096,2]
[393795711,1762997438296,-352.60446114,0.00025096,2]
[393795712,1762997438304,-295.52098516,0.00025303,2]
[393795713,1762997438317,-302.51869059,0.00025364,2]
[393795714,1762997438327,-600.0,0.0002537,2]
[393795715,1762997438337,-1391.0031812,0.00025644,2]
[393795716,1762997438346,-800.0,0.00026055,2]
[393795717,1762997438356,-346.413408,0.00026196,2]
[393795718,1762997438365,-329.66806523,0.00026196,2]
[393795719,1762997438376,-1613.0,0.00026423,2]
[393795720,1762997438386,-505.38402433,0.0002674,2]
[393795721,1762997438402,-6453.0,0.00027086,2]
[393795722,1762997438416,-295.52098516,0.00027206,2]
[393795724,1762997438432,-500.0,0.00027885,2]
[393795726,1762997438442,-606.0,0.0002886,2]
[393795728,1762997438451,-2664.0,0.00029731,2]
[393795730,1762997438462,-200.0,0.0003013,2]
[393795732,1762997438472,-500.0,0.0003189,2]
[393795734,1762997438482,-1256.64206998,0.00032,2]
[393795736,1762997438491,-7430.12363385,0.00034,2]
[393795738,1762997438501,-929.68860885,0.00035,4]
[393795740,1762997438511,-500.0,0.00035431,30]
[393795742,1762997438520,-20069.43514653,0.0003561,120]
[393795744,1762997438529,-523.410439,0.00035634,30]
[393795746,1762997438539,-5220.0,0.000357,5]
[393795748,1762997438548,-152.0,0.0003602,3]
[393795750,1762997438560,-500.0,0.00036073,5]
[393795752,1762997438570,-160.95119521,0.00036073,5]
[393795754,1762997438580,-18222.4032881,0.00036089,3]
[393795756,1762997438590,-27333.6049321,0.0003609,3]
[393795758,1762997438599,-66538.33866894,0.000361,2]
[393795760,1762997438609,-648.81874007,0.00036103,30]
[393795762,1762997438619,-395.25909271,0.00036258,30]
[393795764,1762997438629,-9111.20164403,0.00036293,3]
[393795765,1762997438639,-510.13117198,0.00036303,30]
[393795767,1762997438649,-150.0,0.00036542,7]
[393795768,1762997438660,-1000.5618557,0.00036576,30]
[393795769,1762997438669,-1000.59037472,0.00036576,30]
[393795770,1762997438679,-1000.0,0.00036576,30]
[393795771,1762997438689,-1000.0,0.00036621,5]
[393795772,1762997438699,-2530.68,0.00036757,2]
[393795773,1762997438709,-1588.66761652,0.000368,2]
[393795774,1762997438719,-500.0,0.00036986,30]
[393795775,1762997438729,-1302.0,0.00036986,30]
[393795776,1762997438739,-18222.4032881,0.0003699,4]
[393795777,1762997438748,-32031.1558659,0.00037,5]
[393795778,1762997438758,-150.0,0.00037123,7]
[393795779,1762997438769,-233.93239328,0.0003739,14]
[393795780,1762997438778,-500.0,0.00037638,2]
[393795781,1762997438788,-194.85240459,0.00037668,79]
[393795782,1762997438797,-150.0,0.00037703,7]
[393795783,1762997438810,-195.48190412,0.0003771,12]
[393795784,1762997438821,-153.0,0.00037756,120]
[393795785,1762997438830,-153.0,0.00037756,120]
[393795786,1762997438843,-153.0,0.00037756,120]
[393795787,1762997438853,-153.0,0.00037756,120]
[393795788,1762997438863,-153.0,0.00037756,120]
[393795789,1762997438873,-153.0,0.00037756,120]
[393795790,1762997438883,-153.0,0.00037756,120]
[393795791,1762997438893,-153.0,0.00037756,120]
[393795792,1762997438902,-153.0,0.00037756,120]
[393795793,1762997438912,-153.0,0.00037756,120]
[393795794,1762997438921,-153.0,0.00037757,120]
[393795795,1762997438931,-153.0,0.00037757,120]
[393795796,1762997438941,-153.0,0.00037757,120]
[393795797,1762997438952,-153.0,0.00037757,120]
[393795798,1762997438963,-153.0,0.00037757,120]
[393795799,1762997438973,-153.0,0.00037766,120]
[393795800,1762997438985,-153.0,0.00037766,120]
[393795801,1762997438996,-153.0,0.00037766,120]
[393795802,1762997439007,-153.0,0.00037766,120]
[393795803,1762997439017,-153.0,0.00037766,120]
[393795804,1762997439027,-153.0,0.00037766,120]
[393795805,1762997439038,-153.0,0.00037766,120]
[393795806,1762997439049,-153.0,0.00037766,120]
[393795807,1762997439060,-153.0,0.00037766,120]
[393795808,1762997439069,-153.0,0.00037766,120]
[393795809,1762997439079,-153.0,0.00037768,120]
[393795810,1762997439088,-153.0,0.00037768,120]
[393795811,1762997439098,-153.0,0.00037768,120]
[393795812,1762997439110,-153.0,0.00037768,120]
[393795813,1762997439120,-153.0,0.00037768,120]
[393795814,1762997439129,-9111.20164403,0.00037768,4]
[393795815,1762997439139,-153.0,0.00037777,120]
[393795816,1762997439149,-153.0,0.00037777,120]
[393795817,1762997439159,-153.0,0.00037777,120]
[393795818,1762997439168,-153.0,0.00037777,120]
[393795819,1762997439178,-153.0,0.00037777,120]
[393795820,1762997439188,-153.0,0.00037777,120]
[393795821,1762997439197,-153.0,0.00037777,120]
[393795822,1762997439360,-153.0,0.00037777,120]
[393795823,1762997439372,-153.0,0.00037777,120]
[393795824,1762997439382,-153.0,0.00037777,120]
[393795825,1762997439392,-562.25,0.00037778,2]
[393795826,1762997439402,-20722.84,0.00037778,2]
[393795827,1762997439415,-150.99,0.00037778,2]
[393795828,1762997439426,-153.0,0.00037778,120]
[393795829,1762997439436,-153.0,0.00037778,120]
[393795830,1762997439446,-153.0,0.00037778,120]
[393795831,1762997439458,-153.0,0.00037778,120]
[393795832,1762997439467,-153.0,0.00037778,120]
[393795833,1762997439477,-162.34780758,0.0003778,5]
[393795834,1762997439488,-150.15698566,0.0003778,5]
[393795835,1762997439501,-9111.20164403,0.0003779,4]
[393795836,1762997439511,-151.0,0.00037799,14]
[393795837,1762997439520,-500.0,0.000378,5]
[393795838,1762997439530,-200.0,0.000378,13]
[393795839,1762997439540,-500.0,0.000378,60]
[393795840,1762997439549,-500.0,0.000378,21]
[393795841,1762997439562,-151.67420441,0.000378,60]
[393795842,1762997439572,-150.0,0.000378,60]
[393795843,1762997439581,-500.0,0.000378,60]
[393795844,1762997439591,-150.0,0.000378,2]
[393795845,1762997439602,-163.03237847,0.000378,60]
[393795846,1762997439611,-500.0,0.000378,60]
[393795847,1762997439621,-3353.32474352,0.00037803,2]
[393795848,1762997439631,-500.0,0.0003781,60]
[393795849,1762997439642,-500.0,0.0003781,60]
[393795850,1762997439652,-150.0,0.0003781,2]
[393795851,1762997439662,-500.0,0.0003781,60]
[393795852,1762997439671,-150.0,0.0003781,2]
[393795853,1762997439680,-471.0,0.0003781,60]
[393795854,1762997439690,-650.0,0.0003781,60]
[393795855,1762997439699,-500.0,0.0003781,48]
[393795856,1762997439709,-150.0,0.0003781,60]
[393795857,1762997439719,-150.0,0.0003781,60]
[393795858,1762997439728,-150.0,0.0003781,60]
[393795859,1762997439737,-500.0,0.0003781,60]
[393795860,1762997439747,-150.51134153,0.0003781,60]
[393795861,1762997439756,-150.0,0.0003781,120]
[393795862,1762997439765,-500.0,0.0003781,60]
[393795863,1762997439775,-500.0,0.0003781,60]
[393795864,1762997439784,-150.0,0.0003781,60]
[393795865,1762997439794,-500.0,0.0003781,60]
[393795866,1762997439804,-150.0,0.0003781,60]
[393795867,1762997439816,-500.0,0.0003781,60]
[393795868,1762997439825,-500.0,0.0003781,60]
[393795869,1762997439834,-500.0,0.0003781,60]
[393795870,1762997439847,-500.0,0.0003781,60]
[393795871,1762997439856,-500.0,0.0003781,60]
[393795872,1762997439865,-500.0,0.0003781,60]
[393795873,1762997439874,-500.0,0.0003781,60]
[393795874,1762997439884,-500.0,0.0003781,60]
[393795875,1762997439894,-500.0,0.0003781,60]
[393795876,1762997439903,-500.0,0.0003781,60]
[393795877,1762997439912,-189.75830767,0.0003781,60]
[393795878,1762997439921,-500.0,0.0003781,60]
[393795879,1762997439930,-500.0,0.0003781,60]
[393795880,1762997439939,-150.84110778,0.0003781,60]
[393795881,1762997439948,-500.0,0.00037827,60]
[393795882,1762997439956,-500.0,0.00037827,21]
[393795883,1762997439965,-150.0,0.00037827,60]
[393795884,1762997439974,-500.0,0.00037827,60]
[393795885,1762997439983,-500.0,0.00037837,60]
[393795886,1762997439993,-500.0,0.00037837,60]
[393795887,1762997440002,-404.00223622,0.00037837,60]
[393795888,1762997440010,-471.0,0.00037837,60]
[393795889,1762997440019,-650.0,0.00037837,60]
[393795890,1762997440028,-500.0,0.00037837,48]
[393795891,1762997440036,-157.99378477,0.00037837,60]
[393795892,1762997440046,-150.0,0.00037837,60]
[393795893,1762997440055,-150.0,0.00037837,60]
[393795894,1762997440065,-500.0,0.00037837,60]
[393795895,1762997440074,-150.0,0.00037837,120]
[393795896,1762997440083,-500.0,0.00037837,60]
[393795897,1762997440092,-500.0,0.00037837,60]
[393795898,1762997440101,-150.0,0.00037837,60]
[393795899,1762997440110,-500.0,0.00037837,60]
[393795900,1762997440119,-152.00429988,0.00037837,60]
[393795901,1762997440129,-500.0,0.00037837,60]
[393795902,1762997440138,-500.0,0.00037837,60]
[393795903,1762997440147,-500.0,0.00037855,60]
[393795904,1762997440157,-500.0,0.00037855,21]
[393795905,1762997440167,-150.0,0.00037855,60]
[393795906,1762997440177,-173.11884486,0.00037855,60]
[393795907,1762997440186,-500.0,0.00037857,30]
[393795908,1762997440196,-344.98976954,0.00037865,60]